bitfinex-derivatives/quotes_SOLF0:USTF0_20250530
["timestamp","ask_amount","ask_price","bid_price","bid_amount"]
[1748602547532,37.0519,163.57,163.54,6.1126]
[1748602548031,30.98465028,163.57,163.55,6.1122]
[1748602549027,0.04465028,163.57,163.56,6.112]
[1748602551827,6.11,163.62,163.59,6.1108]
[1748602552839,6.15172884,163.62,163.59,6.15237294]
[1748602553030,6.15172884,163.62,163.59,0.04157294]
[1748602553031,0.04172884,163.62,163.59,0.04157294]
[1748602554140,6.1102,163.61,163.59,0.04157294]
[1748602554440,0.04172884,163.62,163.59,0.04157294]
[1748602554636,6.1102,163.61,163.59,0.04157294]
[1748602555340,6.1105,163.6,163.59,0.04157294]
[1748602556040,0.04172884,163.62,163.59,0.04157294]
[1748602557243,6.15172884,163.62,163.59,0.04157294]
[1748602557444,0.04172884,163.62,163.59,0.04157294]
[1748602557643,6.15152884,163.62,163.59,6.15217294]
[1748602558145,0.04172884,163.62,163.59,0.04157294]
[1748602559539,6.15172884,163.62,163.59,6.15227294]
[1748602559843,0.04172884,163.62,163.59,0.04157294]
[1748602560241,6.1102,163.61,163.59,0.04157294]
[1748602561035,6.15162884,163.62,163.59,0.04157294]
[1748602561240,6.15162884,163.62,163.59,6.15237294]
[1748602561451,0.04172884,163.62,163.59,6.15237294]
[1748602562159,0.04172884,163.62,163.6,6.1105]
[1748602562341,0.04172884,163.62,163.59,0.04157294]
[1748602563040,0.04172884,163.62,163.59,6.15227294]
[1748602564249,6.15162884,163.62,163.59,6.15227294]
[1748602564450,0.04172884,163.62,163.59,6.15227294]
[1748602565842,6.15152884,163.62,163.59,6.15227294]
[1748602566150,0.04172884,163.62,163.59,0.04157294]
[1748602566451,0.04172884,163.62,163.51,30.9]
[1748602566649,0.04172884,163.62,163.54,124.8724]
[1748602566852,0.04172884,163.62,163.54,118.76]
[1748602567244,0.04172884,163.62,163.55,6.1122]
[1748602567545,6.1115,163.58,163.57,0.04426976]
[1748602568439,6.1111,163.59,163.57,0.04426976]
[1748602568746,0.04172884,163.62,163.57,6.15586976]
[1748602568937,0.04172884,163.62,163.57,0.04426976]
[1748602569143,0.04172884,163.62,163.58,6.1111]
[1748602569345,0.04172884,163.62,163.57,0.04426976]
[1748602569645,6.15172884,163.62,163.57,0.04426976]
[1748602570051,6.15172884,163.62,163.59,6.1107]
[1748602571941,0.04172884,163.62,163.57,0.04426976]
[1748602572947,6.1113,163.58,163.57,0.04426976]
[1748602573354,30.9,163.59,163.51,6.1138]
[1748602573548,2.0673,163.58,163.51,6.1138]
[1748602574058,6.113,163.54,163.51,6.1138]
[1748602574248,6.1594493,163.54,163.51,6.15301244]
[1748602574554,6.1594493,163.54,163.52,6.1135]
[1748602574946,0.0464493,163.54,163.52,6.1135]
[1748602575149,0.0464493,163.54,163.53,6.1132]
[1748602576453,0.0464493,163.54,163.52,6.1133]
[1748602578453,0.0464493,163.54,163.51,0.03921244]
[1748602579746,6.1135,163.52,163.51,0.03921244]
[1748602579948,0.0464493,163.54,163.51,0.03921244]
[1748602580753,0.0464493,163.54,163.53,6.1132]
[1748602580956,0.0464493,163.54,163.51,0.03921244]
[1748602581354,0.0464493,163.54,163.53,6.1132]
[1748602583654,0.0464493,163.54,163.53,124.8732]
[1748602585467,4.93e-05,163.54,163.53,124.8732]
[1748602585760,2.0989,163.61,163.6,6.1106]
[1748602586065,6.1095,163.63,163.6,6.1106]
[1748602586665,6.15344807,163.63,163.6,6.15010347]
[1748602587263,6.15344807,163.63,163.61,6.1101]
[1748602587767,6.15344807,163.63,163.6,6.14990347]
[1748602588165,6.1099,163.62,163.6,0.03950347]
[1748602588462,2.06174807,163.63,163.6,0.03950347]
[1748602589065,6.1101,163.62,163.6,6.14980347]
[1748602589763,8.17144807,163.63,163.61,6.1101]
[1748602589961,2.06174807,163.63,163.6,0.03950347]
[1748602590268,0.04394807,163.63,163.6,0.03950347]
[1748602590565,0.04394807,163.63,163.62,6.1098]
[1748602599070,2.0255,163.69,163.67,6.1079]
[1748602599278,2.0255,163.69,163.6,30.88]
[1748602599570,8.1329,163.69,163.6,30.88]
[1748602599769,8.1329,163.69,163.66,6.1081]
[1748602600173,8.1766691,163.69,163.66,6.15129396]
[1748602600672,2.0692691,163.69,163.68,6.1076]
[1748602601073,2.0692691,163.69,163.66,0.04319396]
[1748602602575,2.0692691,163.69,163.67,6.1077]
[1748602602977,2.0692691,163.69,163.66,0.04319396]
[1748602603877,2.0692691,163.69,163.66,6.15129396]
[1748602604077,2.0692691,163.69,163.66,0.04319396]
[1748602604776,2.0692691,163.69,163.66,6.15129396]
[1748602605175,8.1767691,163.69,163.66,6.15129396]
[1748602605878,8.1767691,163.69,163.67,6.1079]
[1748602606176,0.0437691,163.69,163.66,0.04319396]
[1748602606477,0.0437691,163.69,163.67,6.1078]
[1748602606778,0.0437691,163.69,163.66,0.04319396]
[1748602606972,0.0437691,163.69,163.68,6.1076]
[1748602608780,4.056,163.75,163.72,6.1059]
[1748602608981,4.056,163.75,163.68,30.86]
[1748602609183,6.104,163.78,163.68,30.86]
[1748602609385,4.1816,163.8,163.69,118.68]
[1748602609882,6.1036,163.79,163.76,6.1042]
[1748602610081,6.1036,163.79,163.76,0.04680584]
[1748602610581,6.104,163.78,163.76,0.04680584]
[1748602611382,6.1042,163.77,163.76,0.04680584]
[1748602611880,4.1816,163.8,163.76,0.04680584]
[1748602611881,6.1041,163.78,163.76,0.04680584]
[1748602612282,4.1816,163.8,163.76,0.04680584]
[1748602612479,30.86,163.81,163.76,0.04680584]
[1748602612982,6.1037,163.79,163.76,6.15120584]
[1748602613476,30.86,163.81,163.76,0.04680584]
[1748602613673,6.1529,163.84,163.76,0.04680584]
[1748602615082,6.1529,163.84,163.76,6.15120584]
[1748602615883,6.1037,163.79,163.76,6.15120584]
[1748602616080,6.1529,163.84,163.76,6.15120584]
[1748602616480,6.1039,163.78,163.76,6.15120584]
[1748602616783,6.1529,163.84,163.76,0.04680584]
[1748602616984,6.1042,163.77,163.76,0.04680584]
[1748602617579,6.1055,163.74,163.7,30.86]
[1748602617786,30.86,163.81,163.72,6.1059]
[1748602618186,30.86,163.81,163.7,30.86]
[1748602618485,0.04574237,163.77,163.74,0.04199093]
[1748602618787,6.1046,163.76,163.74,0.04199093]
[1748602618980,0.04574237,163.77,163.74,6.14729093]
[1748602619487,6.15004237,163.77,163.74,6.14729093]
[1748602619787,6.15004237,163.77,163.75,6.1049]
[1748602620284,6.15004237,163.77,163.74,0.04199093]
[1748602620480,0.04574237,163.77,163.74,0.04199093]
[1748602620889,6.15004237,163.77,163.74,0.04199093]
[1748602621387,6.15004237,163.77,163.74,6.14699093]
[1748602621580,6.15004237,163.77,163.74,0.04199093]
[1748602622394,0.04574237,163.77,163.74,30.90199093]
[1748602622682,37.0129,163.84,163.74,36.95539093]
[1748602622887,37.0129,163.84,163.74,36.9134]
[1748602623484,6.1033,163.8,163.77,6.104]
[1748602623790,6.1033,163.8,163.77,0.04027621]
[1748602624986,6.1029,163.81,163.78,6.1038]
[1748602625284,6.1029,163.81,163.77,0.04027621]
[1748602625491,6.1021,163.83,163.8,6.1029]
[1748602625701,30.86,163.84,163.8,0.04057223]
[1748602626987,6.1027,163.81,163.8,0.04057223]
[1748602645596,0.04629966,163.82,163.65,74.2173]
[1748602645798,12.2042,163.83,163.71,30.82]
[1748602646000,4.0726,163.82,163.72,6.1058]
[1748602646605,0.04582336,163.79,163.75,0.04454887]
[1748602647002,6.1046,163.76,163.75,0.04454887]
[1748602653006,30.82,163.76,163.66,149.36]
[1748602653298,30.82,163.76,163.66,30.82]
[1748602653604,30.82,163.76,163.67,6.1077]
[1748602654005,30.82,163.76,163.7,0.04155918]
[1748602654006,0.03933799,163.73,163.7,0.04155918]
[1748602654307,6.1064,163.71,163.7,0.04155918]
[1748602658703,6.1079,163.67,163.63,30.82]
[1748602658899,6.1079,163.67,163.65,6.1087]
[1748602659312,6.1077,163.68,163.65,6.1087]
[1748602659505,6.1077,163.68,163.66,6.1082]
[1748602659807,6.14928028,163.69,163.66,6.1082]
[1748602660008,6.14928028,163.69,163.67,6.1078]
[1748602660209,0.04198028,163.69,163.65,0.04629351]
[1748602661098,0.04198028,163.69,163.68,6.1076]
[1748602666212,30.82,163.75,163.69,6.1069]
[1748602666514,6.1062,163.72,163.69,6.1069]
[1748602667307,6.14685462,163.72,163.69,6.15240015]
[1748602667707,6.1065,163.71,163.69,6.15240015]
[1748602668212,6.1068,163.7,163.69,0.04550015]
[1748602677011,6.1086,163.66,163.62,6.1173]
[1748602678018,6.15116161,163.66,163.62,6.16054218]
[1748602678218,6.1087,163.65,163.63,6.1092]
[1748602678516,0.04256161,163.66,163.62,4.09884218]
[1748602678719,0.04256161,163.66,163.62,6.10264218]
[1748602678913,0.04256161,163.66,163.65,6.1087]
[1748602680219,0.04256161,163.66,163.64,6.1089]
[1748602680721,0.04256161,163.66,163.65,6.1087]
[1748602682325,0.04256161,163.66,163.64,6.1089]
[1748602682921,0.04256161,163.66,163.65,6.1087]
[1748602683820,6.15096161,163.66,163.64,6.1089]
[1748602685319,6.15096161,163.66,163.63,6.1092]
[1748602685720,6.1087,163.65,163.63,6.1092]
[1748602687409,0.04256161,163.66,163.62,0.04324218]
[1748602688921,6.1094,163.63,163.62,0.04324218]
[1748602690425,6.1089,163.65,163.62,0.04324218]
[1748602690721,0.04256161,163.66,163.62,0.04324218]
[1748602692315,0.04256161,163.66,163.64,6.109]
[1748602693625,0.04256161,163.66,163.65,6.1087]
[1748602694916,0.04256161,163.66,163.64,6.1089]
[1748602697324,0.04256161,163.66,163.62,0.04324218]
[1748602697822,6.15116161,163.66,163.62,6.15284218]
[1748602698227,0.04256161,163.66,163.62,0.04324218]
[1748602698630,0.04256161,163.66,163.64,6.1089]
[1748602700027,0.04256161,163.66,163.65,6.1087]
[1748602700223,30.8,163.72,163.62,37.56593172]
[1748602700532,30.8,163.72,163.64,6.72268954]
[1748602700834,30.8,163.72,163.65,4.046]
[1748602701428,0.04696756,163.7,163.67,0.04194905]
[1748602701826,0.04696756,163.7,163.69,6.1069]
[1748602702028,0.04696756,163.7,163.67,0.04194905]
[1748602702424,6.1073,163.69,163.67,0.04194905]
[1748602703131,6.1076,163.68,163.67,0.04194905]
[1748602703324,0.04696756,163.7,163.67,0.04194905]
[1748602703929,6.15406756,163.7,163.67,0.04194905]
[1748602704832,6.1074,163.69,163.67,0.04194905]
[1748602705936,6.1076,163.68,163.67,0.04194905]
[1748602720357,527.42,163.79,163.67,30.82194905]
[1748602720548,30.78,163.77,163.67,37.48951167]
[1748602720851,6.106,163.73,163.69,6.107]
[1748602721455,0.04629615,163.73,163.7,6.1068]
[1748602723849,0.04629615,163.73,163.69,0.04023761]
[1748602724050,0.04629615,163.73,163.7,6.70973867]
[1748602724449,0.04629615,163.73,163.7,12.81633867]
[1748602725256,0.04629615,163.73,163.71,6.1064]
[1748602725651,0.04629615,163.73,163.7,6.70973867]
[1748602726051,0.04629615,163.73,163.69,2.13663761]
[1748602726360,0.04629615,163.73,163.69,120.65663761]
[1748602726956,6.1063,163.72,163.69,120.65663761]
[1748602727255,0.04629615,163.73,163.69,120.65663761]
[1748602727463,0.04629615,163.73,163.7,6.1068]
[1748602728259,6.15209615,163.73,163.7,6.1068]
[1748602728558,0.04629615,163.73,163.7,6.1068]
[1748602729158,0.04629615,163.73,163.69,120.65663761]
[1748602729860,0.04629615,163.73,163.7,6.1066]
[1748602730457,6.15199615,163.73,163.7,6.1066]
[1748602731261,0.04629615,163.73,163.71,6.1064]
[1748602731859,0.04629615,163.73,163.7,6.1066]
[1748602733149,0.04629615,163.73,163.69,120.65663761]
[1748602733363,0.04629615,163.73,163.71,6.1065]
[1748602737364,0.04629615,163.73,163.72,6.1061]
[1748602737761,30.78,163.8,163.7,6.70973867]
[1748602738361,6.1037,163.79,163.75,6.1048]
[1748602738653,30.78,163.8,163.75,6.1048]
[1748602738857,30.78,163.8,163.76,0.0428482]
[1748602739056,6.1041,163.78,163.76,0.0428482]
[1748602739351,30.78,163.8,163.76,0.0428482]
[1748602739555,6.1042,163.77,163.76,0.0428482]
[1748602747366,6.1042,163.77,163.76,4.82e-05]
[1748602757172,0.04398768,163.78,163.76,4.82e-05]
[1748602757876,0.04398768,163.78,163.76,6.1044482]
[1748602760277,0.04398768,163.78,163.77,6.1043]
[1748602761074,30.76,163.85,163.77,6.70973867]
[1748602761272,30.76,163.85,163.75,118.48]
[1748602761475,6.1025,163.82,163.78,6.1037]
[1748602761874,6.1028,163.81,163.75,118.48]
[1748602762079,6.1028,163.81,163.77,6.1041]
[1748602762274,30.76,163.85,163.76,0.04310192]
[1748602762584,30.76,163.85,163.77,6.1041]
[1748602762776,30.76,163.85,163.79,0.04344829]
[1748602764080,6.1032,163.8,163.79,0.04344829]
[1748602777793,30.76,163.85,163.79,0.04344829]
[1748602777983,35.05084412,163.85,163.79,0.04344829]
[1748602778390,6.1028,163.82,163.79,6.14684829]
[1748602778683,35.05084412,163.85,163.79,0.04344829]
[1748602778893,30.76,163.85,163.79,0.04344829]
[1748602779096,6.1033,163.8,163.79,0.04344829]
[1748602786095,30.74,163.81,163.79,0.04344829]
[1748602786700,6.1033,163.8,163.79,0.04344829]
[1748602788100,534.14593117,163.87,163.79,0.04344829]
[1748602788298,30.74,163.84,163.79,0.04344829]
[1748602788697,6.1028,163.82,163.79,6.14684829]
[1748602789099,6.103,163.81,163.79,6.14684829]
[1748602789298,6.103,163.81,163.79,0.04344829]
[1748602789796,6.1033,163.8,163.79,0.04344829]
[1748602798709,6.1031,163.81,163.79,0.04344829]
[1748602800707,6.1028,163.82,163.79,0.04344829]
[1748602801107,6.103,163.81,163.79,6.14684829]
[1748602801399,30.74,163.84,163.79,6.14684829]
[1748602801807,30.74,163.84,163.81,6.1027]
[1748602802002,30.74,163.84,163.8,4.28985546]
[1748602802413,30.74,163.84,163.79,0.04344829]
[1748602803109,30.74,163.84,163.8,4.28985546]
[1748602803811,30.74,163.84,163.79,0.04344829]
[1748602804412,35.02985546,163.84,163.79,0.04344829]
[1748602804909,6.1027,163.82,163.79,6.14704829]
[1748602805115,30.74,163.84,163.79,10.43690375]
[1748602805314,30.74,163.84,163.79,4.33330375]
[1748602805511,6.1025,163.83,163.79,10.43700375]
[1748602805706,30.74,163.84,163.79,4.33330375]
[1748602805911,6.1024,163.83,163.79,4.33330375]
[1748602806115,6.1024,163.83,163.8,6.1033]
[1748602807716,6.1027,163.82,163.79,10.43690375]
[1748602808316,6.1024,163.83,163.79,10.43690375]
[1748602808719,30.74,163.84,163.79,10.43690375]
[1748602809816,6.1025,163.83,163.79,10.43690375]
[1748602810212,30.74,163.84,163.79,4.33330375]
[1748602810412,6.1027,163.82,163.79,0.04344829]
[1748602811508,6.1027,163.82,163.79,6.14714829]
[1748602811710,6.1027,163.82,163.79,10.43700375]
[1748602812510,6.103,163.81,163.79,4.33330375]
[1748602812718,35.02985546,163.84,163.79,0.04344829]
[1748602813120,4.28985546,163.83,163.79,0.04344829]
[1748602813820,6.1033,163.8,163.79,0.04344829]
[1748602819524,30.92,163.8,163.74,6.1054]
[1748602819824,4.28985546,163.79,163.74,6.1054]
[1748602820517,4.28985546,163.79,163.72,1.9878]
[1748602820713,0.03882453,163.77,163.74,0.04075734]
[1748602821317,0.03882453,163.77,163.74,4.3306128]
[1748602821529,0.03882453,163.77,163.76,6.1048]
[1748602822321,0.03882453,163.77,163.76,10.39465546]
[1748602823919,0.03882453,163.77,163.76,6.1048]
[1748602826921,0.03882453,163.77,163.75,6.105]
[1748602827121,0.03882453,163.77,163.74,0.04075734]
[1748602827317,6.1052,163.75,163.74,0.04075734]
[1748602827927,6.1063,163.73,163.69,214.6212634]
[1748602828627,6.1064,163.72,163.69,214.6212634]
[1748602829024,6.14797161,163.72,163.69,214.66126051]
[1748602829528,0.04157161,163.72,163.69,208.55406051]
[1748602829728,30.96157161,163.72,163.69,0.03999711]
[1748602830426,6.1071,163.7,163.69,0.03999711]
[1748602831632,37.6673544,163.72,163.62,4.0096]
[1748602831826,37.6673544,163.72,163.6,212.41300638]
[1748602831827,37.62578279,163.72,163.6,212.41300638]
[1748602832032,6.1081,163.68,163.63,6.1096]
[1748602832235,37.0281,163.68,163.63,6.1096]
[1748602832531,0.04107526,163.67,163.64,0.04430099]
[1748602832729,6.14947526,163.67,163.64,0.04430099]
[1748602833132,0.04107526,163.67,163.64,0.04430099]
[1748602834036,6.1089,163.65,163.64,0.04430099]
[1748602834335,6.1087,163.66,163.64,0.04430099]
[1748602835031,6.1089,163.65,163.64,0.04430099]
[1748602835937,6.1087,163.66,163.64,0.04430099]
[1748602836231,0.04107526,163.67,163.64,0.04430099]
[1748602836434,6.14957526,163.67,163.64,0.04430099]
[1748602837035,6.1086,163.66,163.64,0.04430099]
[1748602837339,0.04107526,163.67,163.64,0.04430099]
[1748602837733,6.1089,163.65,163.64,0.04430099]
[1748602839240,6.1099,163.63,163.56,6.1099]
[1748602839440,30.86,163.64,163.56,6.1099]
[1748602839635,30.86,163.63,163.56,6.1099]
[1748602839833,6.1103,163.62,163.56,6.1099]
[1748602840134,0.04688662,163.61,163.57,0.04321412]
[1748602840536,0.04688662,163.61,163.6,6.1108]
[1748602842940,30.86,163.66,163.64,6.109]
[1748602843441,30.86,163.66,163.63,6.1095]
[1748602843643,6.1089,163.65,163.59,30.86]
[1748602843843,0.0417851,163.64,163.6,0.04134231]
[1748602844043,0.0417851,163.64,163.62,6.1098]
[1748602844837,6.1511851,163.64,163.61,6.1103]
[1748602846439,0.0417851,163.64,163.62,6.11]
[1748602846945,0.0417851,163.64,163.63,6.1097]
[1748602847535,30.86,163.69,163.6,37.6071251]
[1748602848145,36.9674,163.69,163.66,6.1083]
[1748602848543,30.9044812,163.69,163.66,0.04194114]
[1748602849547,0.0444812,163.69,163.66,0.04194114]
[1748602849851,0.0444812,163.69,163.68,6.1078]
[1748602850044,30.86,163.75,163.66,6.74772393]
[1748602850342,30.86,163.75,163.69,6.70578279]
[1748602850544,30.86,163.75,163.68,30.86]
[1748602850750,30.86,163.78,163.68,37.56578279]
[1748602850952,6.1054,163.75,163.71,6.1065]
[1748602851153,0.04024018,163.75,163.71,0.04635562]
[1748602852154,0.04024018,163.75,163.73,6.1057]
[1748602852956,0.04024018,163.75,163.74,6.1056]
[1748602854358,0.04024018,163.75,163.73,6.1059]
[1748602857160,0.04024018,163.75,163.72,6.106]
[1748602857358,0.04024018,163.75,163.71,0.04635562]
[1748602857854,36.9659,163.74,163.71,0.04635562]
[1748602858060,30.86,163.74,163.71,0.04635562]
[1748602859059,6.1063,163.72,163.71,0.04635562]
[1748602859961,30.86,163.74,163.71,0.04635562]
[1748602860760,6.1063,163.72,163.71,0.04635562]
[1748602861967,6.1061,163.73,163.71,0.04635562]
[1748602862465,36.9657,163.74,163.71,0.04635562]
[1748602862962,30.86,163.74,163.71,0.04635562]
[1748602863165,6.1062,163.73,163.71,0.04635562]
[1748602863666,30.86,163.74,163.71,0.04635562]
[1748602864161,30.86,163.74,163.71,6.15275562]
[1748602865361,30.86,163.74,163.72,6.1063]
[1748602865665,30.86,163.74,163.71,0.04635562]
[1748602865962,36.9656,163.74,163.71,6.15285562]
[1748602866261,30.86,163.74,163.72,6.1063]
[1748602866564,0.04024018,163.75,163.71,0.04635562]
[1748602866968,0.04024018,163.75,163.74,6.1056]
[1748602869162,0.04024018,163.75,163.73,6.1058]
[1748602870067,0.04024018,163.75,163.74,6.1056]
[1748602871261,0.04024018,163.75,163.71,0.04635562]
[1748602872471,0.04024018,163.75,163.71,6.15295562]
[1748602872772,0.04024018,163.75,163.71,0.04635562]
[1748602873159,6.1059,163.74,163.71,0.04635562]
[1748602873766,6.14564018,163.75,163.71,0.04635562]
[1748602874563,6.1056,163.74,163.71,0.04635562]
[1748602874764,0.04024018,163.75,163.71,0.04635562]
[1748602875070,6.14554018,163.75,163.72,6.1061]
[1748602877063,0.04024018,163.75,163.72,6.1061]
[1748602877272,6.1056,163.74,163.71,6.15295562]
[1748602878278,6.1056,163.74,163.72,6.1063]
[1748602878478,6.14564018,163.75,163.72,6.1063]
[1748602879374,0.04024018,163.75,163.71,0.04635562]
[1748602879870,0.04024018,163.75,163.71,2.01655562]
[1748602880075,0.04024018,163.75,163.74,6.1056]
[1748602880668,0.04024018,163.75,163.73,6.1058]
[1748602880876,0.04024018,163.75,163.71,3.99425562]
[1748602881374,0.04024018,163.75,163.74,6.1056]
[1748602885678,30.76,163.83,163.73,37.46578279]
[1748602886068,6.1026,163.82,163.73,37.46578279]
[1748602886266,30.76,163.83,163.73,37.46578279]
[1748602886474,6.1032,163.81,163.73,37.46578279]
[1748602886667,30.76,163.83,163.75,0.04301378]
[1748602887474,6.1032,163.81,163.78,6.1041]
[1748602887674,6.1032,163.81,163.78,6.14534987]
[1748602888877,30.76,163.83,163.78,0.04124987]
[1748602889874,6.1036,163.8,163.78,0.04124987]
[1748602890875,6.1037,163.79,163.78,0.04124987]
[1748602891784,6.1035,163.8,163.78,0.04124987]
[1748602892083,30.76,163.83,163.78,0.04124987]
[1748602892280,30.76,163.83,163.78,6.14524987]
[1748602892480,30.76,163.83,163.78,0.04124987]
[1748602892977,36.8624,163.83,163.78,0.04124987]
[1748602893174,36.8624,163.83,163.8,6.1033]
[1748602894283,30.76,163.83,163.81,6.1028]
[1748602895582,30.76,163.83,163.82,6.1026]
[1748602895784,30.76,163.86,163.82,6.1026]
[1748602896090,36.8614,163.86,163.83,6.102]
[1748602896389,30.76,163.89,163.82,0.04293853]
[1748602896586,30.76,163.92,163.82,0.04293853]
[1748602896885,30.76,163.92,163.85,0.03873042]
[1748602897079,36.8589,163.92,163.85,2.12393042]
[1748602897284,30.76,163.92,163.85,2.12393042]
[1748602897783,6.0995,163.91,163.87,6.1005]
[1748602898079,6.0998,163.9,163.87,6.1005]
[1748602898478,30.76,163.92,163.86,6.101]
[1748602898981,6.1,163.89,163.86,6.101]
[1748602899372,30.76,163.92,163.87,6.1007]
[1748602900078,30.76,163.92,163.86,6.101]
[1748602900282,6.0999,163.9,163.85,2.12393042]
[1748602900482,6.0999,163.9,163.87,6.1007]
[1748602900984,6.1001,163.89,163.86,6.101]
[1748602901184,30.76,163.92,163.86,6.101]
[1748602901387,6.0999,163.9,163.85,2.12393042]
[1748602901583,6.0999,163.9,163.87,6.1005]
[1748602901981,30.76,163.92,163.85,32.94393042]
[1748602902281,558.06,163.95,163.88,6.1004]
[1748602902482,558.06,163.95,163.9,0.04294543]
[1748602903173,6.0993,163.91,163.9,0.04294543]
[1748602905475,6.1013,163.86,163.83,6.1022]
[1748602906384,6.1009,163.87,163.83,6.1022]
[1748602906585,6.14384543,163.87,163.83,6.14180772]
[1748602906981,0.04294543,163.87,163.85,6.1015]
[1748602907184,0.04294543,163.87,163.83,0.03960772]
[1748602907587,0.04294543,163.87,163.84,6.1018]
[1748602907887,0.04294543,163.87,163.83,0.03960772]
[1748602910484,0.04294543,163.87,163.48,124.0]
[1748602910485,30.86294543,163.87,163.76,30.82]
[1748602910686,3.9769,163.86,163.76,118.86]
[1748602910886,3.9769,163.86,163.75,30.82]
[1748602910887,6.1025,163.83,163.79,6.1037]
[1748602911187,3.9769,163.86,163.79,6.1037]
[1748602911388,3.9769,163.86,163.75,30.82]
[1748602911584,0.04663701,163.82,163.79,0.04090773]
[1748602911788,30.86663701,163.82,163.79,0.04090773]
[1748602912087,6.1034,163.8,163.79,0.04090773]
[1748602912677,6.1031,163.81,163.79,0.04090773]
[1748602912889,30.86663701,163.82,163.79,0.04090773]
[1748602913390,6.1034,163.8,163.79,0.04090773]
[1748602915590,6.1049,163.76,163.72,30.82]
[1748602915888,6.1049,163.76,163.7,6.70578279]
[1748602916079,6.1049,163.76,163.69,30.82]
[1748602916280,6.1049,163.76,163.72,6.1062]
[1748602916789,6.1049,163.76,163.72,6.14962973]
[1748602916790,6.1052,163.75,163.72,6.14962973]
[1748602916988,0.0443209,163.76,163.72,6.14962973]
[1748602917185,6.1494209,163.76,163.72,6.14962973]
[1748602917789,6.1494209,163.76,163.73,6.1059]
[1748602917790,0.0443209,163.76,163.73,6.1059]
[1748602917985,0.0443209,163.76,163.72,0.04332973]
[1748602918193,0.0443209,163.76,163.73,6.1057]
[1748602918488,6.1493209,163.76,163.72,0.04332973]
[1748602918690,0.0443209,163.76,163.72,0.04332973]
[1748602919086,6.1052,163.75,163.72,6.14942973]
[1748602919689,6.1059,163.74,163.72,0.04332973]
[1748602919892,0.0443209,163.76,163.72,0.04332973]
[1748602920193,6.1055,163.75,163.72,0.04332973]
[1748602920786,6.106,163.73,163.72,0.04332973]
[1748602920989,30.82,163.74,163.68,6.1075]
[1748602921195,30.82,163.74,163.64,34.8913]
[1748602921392,6.1069,163.71,163.67,6.108]
[1748602921901,6.1071,163.7,163.67,6.108]
[1748602922195,0.03963272,163.7,163.67,6.15355433]
[1748602922883,0.03963272,163.7,163.68,6.1078]
[1748602923099,0.03963272,163.7,163.67,0.04555433]
[1748602923590,0.03963272,163.7,163.69,6.1075]
[1748602927896,30.84,163.77,163.68,30.84]
[1748602928400,30.84,163.77,163.7,6.70578279]
[1748602928798,36.9446,163.77,163.7,6.70578279]
[1748602928998,0.04574786,163.75,163.73,6.106]
[1748602929699,0.04574786,163.75,163.74,6.1056]
[1748602930293,3.9937,163.82,163.72,31.42464061]
[1748602930294,31.38,163.8,163.72,31.42464061]
[1748602930498,31.38,163.8,163.72,33.3767]
[1748602930691,6.1043,163.78,163.72,33.3767]
[1748602931297,0.0412678,163.77,163.73,0.04199763]
[1748602932104,0.0412678,163.77,163.76,6.1048]
[1748602932295,31.36,163.83,163.73,6.74778042]
[1748602932494,31.36,163.83,163.79,6.1035]
[1748602932693,31.36,163.83,163.73,6.70578279]
[1748602933096,37.4626,163.83,163.73,6.70578279]
[1748602933403,0.04014223,163.8,163.76,0.04669748]
[1748602934604,0.04014223,163.8,163.79,6.1037]
[1748602936913,0.04014223,163.8,163.76,0.04669748]
[1748602937305,6.1045,163.77,163.76,0.04669748]
[1748602938301,6.1042,163.78,163.76,0.04669748]
[1748602938701,0.04014223,163.8,163.76,0.04669748]
[1748602938904,0.04014223,163.8,163.78,6.1039]
[1748602939105,0.04014223,163.8,163.76,0.04669748]
[1748602939312,6.1045,163.77,163.76,0.04669748]
[1748602939802,6.1063,163.73,163.69,31.36]
[1748602940010,6.1063,163.73,163.7,6.1068]
[1748602940598,6.1063,163.73,163.69,31.36]
[1748602940599,37.6542,163.79,163.69,31.36]
[1748602940800,0.03883683,163.76,163.72,0.04106636]
[1748602941408,6.1053,163.75,163.72,6.14736636]